Cogmind - Beta 10.2 @@@ ROGUE MODE // 2021.09.17 @ 08:53:20 Player: rath Result: Destroyed by D-53 Grenadier with Mini Grenade Launcher Performance ------------- Evolutions (0) 0 Regions Visited (2) 400 Robots Destroyed (13) 65 Value Destroyed (326) 326 Prototype IDs (5) 100 Alien Tech Used (0) 0 Bonus (0) 0 TOTAL SCORE: 891 Bonus ------- None Cogmind --------- Core Integrity 0/250 Matter 300/300 Energy 250/250 System Corruption 3% Temperature Cool (0) Movement Walking (150) Ox1 Location -10/Mines Parts ------- > --- POWER (1) -------- Ion Engine > --- PROPULSION (2) --- Improved Aluminum Leg > --- UTILITY (2) ------ Large Storage Unit Sensor Array > --- WEAPON (2) ------- Assault Rifle > --- INVENTORY (10) --- Ion Engine Improved Aluminum Leg Improved Aluminum Leg Medium Storage Unit Large Storage Unit Weight Redist. System Signal Interpreter Transport Network Coupler Grenade Launcher Mace Peak State ------------ > --- POWER ------------ Ion Engine > --- PROPULSION ------- Improved Aluminum Leg Improved Aluminum Leg > --- UTILITY ---------- Medium Storage Unit Sensor Array > --- WEAPON ----------- Assault Rifle Mace > --- INVENTORY -------- Ion Engine Improved Aluminum Leg Improved Aluminum Leg Weight Redist. System Signal Interpreter Transport Network Coupler Small Laser Grenade Launcher [Rating: 11] Favorites ----------- Power Ion Engine Engine Ion Engine Propulsion Aluminum Leg Leg Aluminum Leg Utility Sensor Array Device Sensor Array Storage Medium Storage Unit Protection Light Armor Plating Weapon Assault Rifle Energy Gun Small Laser Ballistic Gun Assault Rifle Impact Weapon Mace Build | -11 -10 -10 ------- Run | Scr Mat Min Slots Evolved . | . . . Power . | . . . Propulsion . | . . . Utility . | . . . Weapon . | . . . Parts Attached 24 | 5 17 2 Power 4 | 1 2 1 Engine 4 | 1 2 1 Core . | . . . Reactor . | . . . Propulsion 6 | 2 4 . Treads . | . . . Leg 6 | 2 4 . Wheel . | . . . Hover . | . . . Flight . | . . . Utility 6 | . 6 . Device 2 | . 2 . Storage 3 | . 3 . Processor . | . . . Hackware . | . . . Protection 1 | . 1 . Artifact . | . . . Weapon 8 | 2 5 1 Energy Gun 3 | 1 1 1 Energy Cannon . | . . . Ballistic Gun 3 | 1 2 . Ballistic Cannon . | . . . Launcher . | . . . Special Weapon . | . . . Impact Weapon 2 | . 2 . Slashing Weapon . | . . . Piercing Weapon . | . . . Special Melee Weapon . | . . . Unidentified Prototypes . | . . . Parts Lost 3 | . 1 2 Power . | . . . Propulsion 1 | . . 1 Utility . | . . . Weapon 2 | . 1 1 Highest Loss Streak 2 | . 1 2 Average Slot Usage (%) 95 | . 95 99 Engine 14 | . 14 14 Leg 28 | . 28 28 Device 9 | . 9 14 Storage 14 | . 14 14 Energy Gun 12 | . 12 11 Ballistic Gun 12 | . 12 14 Impact Weapon 2 | . 2 1 Naked Turns . | . . . Heaviest Build 26 | 7 26 26 Greatest Support 26 | 20 26 26 Greatest Overweight (x) 1 | . . 1 Average Overweight (x) . | . . . Largest Inventory Capacity 10 | 4 10 10 Average Capacity 7 | 4 7 10 Most Carried 10 | 4 10 10 Average Carried 7 | 3 6 10 Final Capacity 10 | 4 10 10 Final Carried 10 | 4 10 10 Class Distribution -------------------- 81% | Mutant 18% | Scavenger-Mutant Dominant Class ---------------- Mutant | -10/Materials Mutant | -10/Mines Resources | -11 -10 -10 ----------- Run | Scr Mat Min Matter Collected 594 | 247 303 44 Remotely . | . . . Salvage Created 488 | . 405 83 Parts 33 | . 29 4 Haulers Intercepted 1 | . 1 . Recyclers Shooed 1 | . 1 . Parts Field Recycled . | . . . Retrieved Matter . | . . . Parts Self-Destructed . | . . . Prevented . | . . . Kills | -11 -10 -10 ------- Run | Scr Mat Min Combat Hostiles Destroyed 10 | . 8 2 Guns 9 | . 7 2 AOE 1 | . 1 . Classes Destroyed 5 | . 5 . Worker 1 | . 1 . Hauler 1 | . 1 . Watcher 1 | . 1 . Swarmer 3 | . 3 . Grunt 7 | . 5 2 Best Kill Streak 3 | . 3 1 Combat Bots Only 3 | . 3 1 Max Kills in Single Turn 1 | . 1 1 Gunslinging . | . . . Exploded 1 | . 1 . Melee . | . . . Uniques/NPCs Destroyed . | . . . Combat | -11 -10 -10 -------- Run | Scr Mat Min Damage Taken 1074 | . 546 528 Core 271 | . 121 150 Absorbed by Shields . | . . . Core Remaining (%) 100 | 100 . . Volleys Fired 52 | . 44 8 Largest 2 | . 2 2 Hottest 60 | . 60 60 Shots Fired 95 | . 79 16 Gun 95 | . 79 16 Cannon . | . . . Launcher . | . . . Special . | . . . Kinetic 43 | . 35 8 Thermal 31 | . 23 8 Explosive . | . . . Electromagnetic 21 | . 21 . Robot Hit Streak 9 | . 8 9 Robot Miss Streak 7 | . 7 1 Penetration Max . | . . . Secondary Targets . | . . . Shots Hit Robots 56 | . 43 13 Core Hits 24 | . 19 5 Critical Hits . | . . . Critical Kills . | . . . Critical Parts Destroyed . | . . . Melee Attacks 11 | . 11 . Impact 11 | . 11 . Slashing . | . . . Piercing . | . . . Sneak Attacks 1 | . 1 . Combat Hostiles . | . . . Follow-up Attacks . | . . . Damage Inflicted 815 | . 658 157 Guns 720 | . 563 157 Cannons . | . . . Explosions 44 | . 44 . Melee 51 | . 51 . Ramming . | . . . Kinetic 293 | . 192 101 Thermal 248 | . 192 56 Explosive . | . . . Electromagnetic 223 | . 223 . Impact 51 | . 51 . Slashing . | . . . Piercing . | . . . Highest Corruption 3 | . 3 3 Average Corruption 2 | . 2 3 Corruption Purged . | . . . Effects 28 | . 25 3 Message Errors 9 | . 9 . Matter Fused 3 | . 3 . Heat Flow Errors 6 | . 5 1 Energy Discharges 3 | . 3 . Data Loss (minor) 5 | . 3 2 Targeting Errors 2 | . 2 . Overload Shots . | . . . Overflow Damage 11 | . 11 . Projectiles . | . . . Explosions . | . . . Melee 11 | . 11 . Knockbacks . | . . . Impact . | . . . Kinetic . | . . . Secondary . | . . . Self-Inflicted Damage 42 | . 42 . Shots 1 | . 1 . Rammed . | . . . Targets Rammed . | . . . Kicked . | . . . Crushed . | . . . Highest Temperature 288 | . 288 183 Average Temperature 73 | . 81 42 Received Heat Transfer 293 | . 201 92 Effects 1 | . 1 . Interference 1 | . 1 . Siege Activations . | . . . Robots Corrupted 1 | . 1 . Combat Hostiles . | . . . Parts Fried 1 | . 1 . Impact Corruptions 1 | . 1 . Robots Melted . | . . . Combat Hostiles . | . . . Parts Melted . | . . . Heat Transferred 450 | . 325 125 Parts Sabotaged . | . . . Parts Stolen . | . . . Parts Stripped . | . . . Power Chain Reactions 1 | . 1 . Missiles Intercepted . | . . . Alert | -11 -10 -10 ------- Run | Scr Mat Min Peak Influence 124 | . 124 78 Initial 13 | . . 13 Average 46 | . 47 55 Maximum Alert Level . | . . . Low Security (%) 100 | 100 100 100 Level 1 . | . . . Level 2 . | . . . Level 3 . | . . . Level 4 . | . . . Level 5 . | . . . High Security . | . . . Max Security . | . . . Squads Dispatched . | . . . Investigation . | . . . Extermination . | . . . Reinforcement . | . . . Assault . | . . . Garrison . | . . . Intercept . | . . . Construction Impeded . | . . . Haulers Reinforced . | . . . Stealth | -11 -10 -10 --------- Run | Scr Mat Min Distress Signals 2 | . 2 . Communications Jammed . | . . . Distress Signals . | . . . Times Spotted 50 | . 27 23 Peak Tracking Total 19 | . 4 19 Tactical Retreats 3 | . 2 1 Traps | -11 -10 -10 ------- Run | Scr Mat Min Traps Triggered 3 | . 3 . Indirectly . | . . . Trap Hack Attempts . | . . . Triggered . | . . . Disarmed . | . . . Reprogrammed . | . . . Reused . | . . . Traps Extracted . | . . . Installed . | . . . Triggered . | . . . Machines | -11 -10 -10 ---------- Run | Scr Mat Min Machines Disabled . | . . . Max in Single Turn . | . . . Machines Sabotaged . | . . . Garrisons Compromised . | . . . Overloaded Fab Kills . | . . . Fab Network Shutdowns . | . . . Hacking | -11 -10 -10 --------- Run | Scr Mat Min Machines Accessed 10 | . 10 . Terminals 8 | . 8 . Fabricators . | . . . Repair Stations 1 | . 1 . Recycling Units 1 | . 1 . Scanalyzers . | . . . Garrison Access . | . . . Total Hacks 34 | . 34 . Successful 17 | . 17 . Failed 17 | . 17 . Catastrophic 2 | . 2 . Database Lockouts . | . . . Manual 28 | . 28 . Terminals 29 | . 29 . Fabricators . | . . . Repair Stations 4 | . 4 . Recycling Units 1 | . 1 . Scanalyzers . | . . . Garrison Access . | . . . Terminal Hacks 7 | . 7 . Prototype ID Bank 4 | . 4 . Branch Access Points 1 | . 1 . Alert Level 1 | . 1 . Hauler Manifests 1 | . 1 . Fabricator Hacks . | . . . Repair Station Hacks 4 | . 4 . Scan Component 2 | . 2 . Repair 2 | . 2 . Recycling Unit Hacks 1 | . 1 . Report Inventory 1 | . 1 . Scanalyzer . | . . . Garrison Access Hacks . | . . . Unauthorized Hacks 5 | . 5 . Terminals 5 | . 5 . Assimilate 1 | . 1 . Botnet 3 | . 3 . Operators 1 | . 1 . Fabricators . | . . . Repair Stations . | . . . Recycling Units . | . . . Scanalyzers . | . . . Garrison Access . | . . . Data Cores Recovered . | . . . Used . | . . . Hacking Detections 9 | . 9 . Full Trace Events 3 | . 3 . Feedback Events . | . . . Feedback Blocked . | . . . Robot Schematics Acquired . | . . . Robots Built . | . . . Matter . | . . . Time . | . . . Total Robot Build Rating . | . . . Part Schematics Acquired . | . . . Parts Built . | . . . Matter . | . . . Time . | . . . Total Part Build Rating . | . . . Parts Repaired 2 | . 2 . Time 52 | . 52 . Parts Recycled . | . . . Recycled Matter . | . . . Retrieved Matter . | . . . Retrieved Components . | . . . Parts Scanalyzed . | . . . Part Schematics Acquired . | . . . Parts Damaged . | . . . Bothacking | -11 -10 -10 ------------ Run | Scr Mat Min Used RIF Installer . | . . . Robots Hacked . | . . . Non-combat . | . . . Combat . | . . . Robot Hacks Applied . | . . . Relay Couplers Released . | . . . Robots Rewired . | . . . Allies Hacked . | . . . Hacks Repelled . | . . . Allies | -11 -10 -10 -------- Run | Scr Mat Min Total Allies 1 | . 1 . Largest Group 1 | . 1 1 Highest-Rated Group 10 | . 10 10 Highest-Rated Ally 10 | . 10 10 Total Orders . | . . . Ally Attacks . | . . . Total Damage . | . . . Kills . | . . . Allies Corrupted . | . . . Allies Melted . | . . . Intel | -11 -10 -10 ------- Run | Scr Mat Min Robot Analysis Total . | . . . Derelict Logs Recovered 1 | . . 1 Drone Launches . | . . . Drone Recoveries . | . . . Exploration | -11 -10 -10 ------------- Run | Scr Mat Min Turns Passed 2035 | 53 1776 206 Spaces Moved 1277 | 38 1135 104 Core 7 | 7 . . Treads . | . . . Legs 1270 | 31 1135 104 Wheels . | . . . Hover . | . . . Flight . | . . . Fastest Speed 50 | 50 120 120 Average Speed 119 | 107 120 120 Slowest Speed 150 | 120 120 150 Overloaded Moves . | . . . Propulsion Burnouts . | . . . Robots Hopped . | . . . Cave-ins Triggered . | . . . Exploration Rate (%) 43 | 3 98 30 Regions Visited 2 Branch Regions 1 Pre-discovered Areas . | . . . Known Exits Taken 1 | . 1 . Unknown Exits Taken 1 | 1 . . Scrap Searched . | . . . Spaces Dug 7 | . 7 . Terrain Destroyed 11 | . 11 . Melee 7 | . 7 . Projectile . | . . . AOE 4 | . 4 . Terrain Rammed . | . . . Walls Destroyed . | . . . Machines Disabled . | . . . Actions | -11 -10 -10 --------- Run | Scr Mat Min Total 1675 | 50 1456 169 Wait 275 | . 221 54 Move 1275 | 37 1134 104 Hop . | . . . Pick Up 24 | 8 16 . Fast Attach 3 | 1 2 . Attach 8 | 4 4 . Detach . | . . . Swap 13 | . 11 2 Drop 14 | . 13 1 Fire 52 | . 44 8 Melee 11 | . 11 . Ram . | . . . Kick . | . . . Crush . | . . . Escape Stasis . | . . . Rewire . | . . . Trap . | . . . Miscellaneous . | . . . Route ------- -11/Scrapyard -10/Materials (discovered 4 exits: [*Mat x3] / *Min) -10/Mines (discovered 1 exit: [*Mat]) History --------- Turn | Location | Event 6 | -11/Scrapyard | Discovered new exit (range 14) 54 | -11/Scrapyard | Entered Materials 223 | -10/Materials | Discovered new exit (range 14) 303 | -10/Materials | Build established: Mutant 409 | -10/Materials | Discovered new exit (range 8) 569 | -10/Materials | Discovered new exit (range 16) 1073 | -10/Materials | Discovered new exit (range 5) 1234 | -10/Materials | Identified exit to Mines 1404 | -10/Materials | Repaired Sensor Array 1431 | -10/Materials | Repaired Assault Rifle 1830 | -10/Materials | Entered Mines 1830 | -10/Mines | Accompanied by 1 ally 1834 | -10/Mines | Learned Materials non-interactive machine intel 1856 | -10/Mines | Core integrity fell below 50% 1920 | -10/Mines | Discovered new exit (range 8) 2000 | -10/Mines | Assembled infested the area 2033 | -10/Mines | Core integrity fell below 20% 2036 | -10/Mines | Destroyed by D-53 Grenadier with Mini Grenade Launcher Last Messages --------------- 02024_ Knocked back. 02024_ as-73121 destroyed. 02024_ as-11005 destroyed. 02024_ as-83840 destroyed. 02025_ as-63802 destroyed. 02026_ as-89946 destroyed. 02026_ as-42826 destroyed. 02026_ as-49443 destroyed. 02026_ as-26811 destroyed. 02026_ as-73437 destroyed. 02026_ as-68301 destroyed. 02026_ as-14893 destroyed. 02027_ as-24575 destroyed. 02027_ as-23673 destroyed. 02029_ as-35632 destroyed. 02030_ The unstable cave ceiling collapses. 02031_ as-80459 destroyed. 02032_ The unstable cave ceiling collapses. 02033_ as-21698 destroyed. 02034_ Imp. Aluminum Leg destroyed. Map ----- +----------------------------------------------------+ | ????????????????????????????????????????????## ## | | ???????????????????????????????????????????## # | | ??????????????????????????????????????????## | | ????????????????????????????????????????### | | ???????????????????????????????????????## | | ??????????????????????????????????????## | | ??????????????????????????????????????# ## | | ??????????????????????????????????????# #### | | ?????????????????????????????????????## ##?## # | | ???????????????????????????????????### #??# # | | ?????????????????????????????????### < #??# # | | ????????????????????????????????## #??# | | ?????????????????????????????#### ##??# | | ????????????????????????????## #####???# # | | ????????????????????????????# %*###???????# ## | | ????????????????????????????# ###?????????##### | | ????????????????????????????# ##???????????????# | | ????????????????????????????# ##???????????????# | | ????????????????????????????# ####????????????? | | ????##???????????#####?????## ##???????????? | | ????# ???????????# ??### #???????????? | | ????# ??????????# # ## #???????????? | | ???## #?????????# ## ##???????????? | | ### ###?????# ##### ###????????????? | | ??### # ### ##??????????????? | | ? ## @ #### #???????????????? | | ??? # # #??? ??????????????? | | ??? % #???## ?????????????? | | ??? #????? ##????????????? | | ?????# d d #??????#?????????????? | | ?????? #####????????????????????? | | ??????# ##????????????????????????? | | ???????## #?????????????????????????? | | ????????# # #?????????????????????????? | | ????????## ### ## ##?????????????????????????? | | ?????????####??#??#####??????????????????????????? | | ?????????????????????????????????????????????????? | | ?????????????????????????????????????????????????? | | ?????????????????????????????????????????????????? | | | | | | | | | | | | | | | | | | | | | | | +----------------------------------------------------+ Best States ------------- Heat Dissipation 25 Energy Generation 10 Energy Capacity 250 Matter Stores 300 Matter Capacity 300 Sight Range 16 Robot Scan Range 10 Terrain Scan Density 10 Armor Coverage 150 Evasion (%) 40 Item Schematics ----------------- None Robot Schematics ------------------ None Fabricated ------------ Nothing Alien Tech Used ----------------- None Achievements -------------- None Challenges ------------ None Game ------ Seed HypercooledPotentialShotgun Manual? 0 Play Time 00:23:38 Cumulative 54.2 hours Start 2021.09.17 @ 08:29:21 End 2021.09.17 @ 08:53:20 Sessions 1 Manual Loads 0 Difficulty Rogue Special Mode None Game No. 19 Rogue 19 Adventurer 0 Explorer 0 Win Type - Total 0 Types 0/0/0/0/0/0/0/0/0 Lore% 36 Gallery% 46 Achievement% 34 Wizard Run 0 Options --------- ASCII 0 Keyboard 0 Movement Mouse Keybinds 0 Fullscreen 1 Font 36/Smallcaps Map View 76x50 Tactical HUD 1 Map Filters NONE Filters NONE Steam 1 RUN: a9e34a87-d981-4fd4-a890-aaa2b150cca0